bitfinex/quotes_BTCUSD_20240617
["timestamp","ask_amount","ask_price","bid_price","bid_amount"]
[1718634325163,0.172774,65456.0,65455.0,0.01834565]
[1718634325365,0.02,65452.0,65451.0,0.252786]
[1718634325579,0.30871779,65459.0,65451.0,0.405572]
[1718634325580,0.02,65454.0,65451.0,0.405572]
[1718634325783,0.02,65452.0,65451.0,0.558358]
[1718634326221,0.02,65457.0,65451.0,0.1]
[1718634326418,0.172772,65457.0,65446.0,0.1]
[1718634326551,0.02,65456.0,65453.0,0.152781]
[1718634326760,0.02,65456.0,65454.0,0.25272888]
[1718634327162,0.01103626,65455.0,65454.0,0.25272888]
[1718634327577,0.03103626,65455.0,65454.0,0.25272888]
[1718634327998,0.60196526,65455.0,65454.0,0.25272888]
[1718634328211,0.23713626,65455.0,65454.0,0.25272888]
[1718634329470,0.23813626,65455.0,65454.0,0.26372888]
[1718634329685,0.39091226,65455.0,65454.0,0.111]
[1718634329896,0.39091226,65455.0,65454.0,0.021]
[1718634329897,0.69964805,65455.0,65454.0,0.021]
[1718634330329,1.00520105,65455.0,65454.0,0.021]
[1718634331424,1.00520105,65455.0,65454.0,0.011]
[1718634331864,1.00520105,65455.0,65454.0,0.017]
[1718634332284,1.00420105,65455.0,65454.0,0.006]
[1718634332498,1.00520105,65455.0,65454.0,0.013]
[1718634332951,1.10520105,65455.0,65454.0,0.013]
[1718634333161,1.00520105,65455.0,65454.0,0.013]
[1718634333364,0.69964805,65455.0,65454.0,0.013]
[1718634333597,1.00520105,65455.0,65454.0,0.013]
[1718634333738,1.00501723,65455.0,65454.0,0.013]
[1718634334391,1.10501723,65455.0,65454.0,0.013]
[1718634334518,1.00501723,65455.0,65454.0,0.013]
[1718634336032,0.69946423,65455.0,65454.0,0.013]
[1718634345343,0.39391123,65455.0,65454.0,0.013]
[1718634345574,0.12763523,65455.0,65454.0,0.013]
[1718634345805,0.01503523,65455.0,65454.0,0.776895]
[1718634346044,0.01503523,65455.0,65454.0,0.165779]
[1718634346300,0.01503523,65455.0,65454.0,0.013]
[1718634346301,0.14813523,65455.0,65454.0,0.013]
[1718634346540,0.14813523,65455.0,65454.0,0.165779]
[1718634347440,0.22213523,65455.0,65454.0,0.013]
[1718634347669,0.37491123,65455.0,65454.0,0.013]
[1718634347929,0.22213523,65455.0,65454.0,0.013]
[1718634351086,0.20213523,65455.0,65454.0,0.013]
[1718634352058,0.22213523,65455.0,65454.0,0.013]
[1718634352967,0.22213523,65455.0,65454.0,0.165779]
[1718634353783,0.22213523,65455.0,65454.0,0.013]
[1718634354357,0.12813523,65455.0,65454.0,0.471337]
[1718634354571,0.20213523,65455.0,65454.0,0.471337]
[1718634354787,0.22213523,65455.0,65454.0,0.471337]
[1718634355024,0.20213523,65455.0,65454.0,0.471337]
[1718634355229,0.20213523,65455.0,65454.0,0.47108267]
[1718634355706,0.21128279,65455.0,65454.0,0.16552467]
[1718634356076,0.22210676,65455.0,65454.0,0.16552467]
[1718634356473,0.22210676,65455.0,65454.0,0.01274567]
[1718634357300,0.22210676,65455.0,65454.0,0.16552467]
[1718634358134,0.22210676,65455.0,65454.0,0.47108267]
[1718634358357,0.20210676,65455.0,65454.0,0.47108267]
[1718634358594,0.20210676,65455.0,65454.0,1.08219867]
[1718634358595,0.01500676,65455.0,65454.0,1.08219867]
[1718634358780,0.01500676,65455.0,65454.0,1.20550673]
[1718634358984,0.01500676,65455.0,65454.0,0.89994873]
[1718634359596,0.01500676,65455.0,65454.0,0.90079873]
[1718634360024,0.01594177,65455.0,65454.0,0.90099974]
[1718634360536,0.01594177,65455.0,65454.0,1.20655774]
[1718634360710,0.01594177,65455.0,65454.0,1.47055774]
[1718634360711,0.01275898,65455.0,65454.0,1.47055774]
[1718634360959,0.00093501,65476.0,65469.0,0.09]
[1718634361206,0.00093501,65476.0,65470.0,0.12350907]
[1718634361426,0.00093501,65476.0,65475.0,0.76365]
[1718634361639,0.00093501,65476.0,65475.0,1.73864286]
[1718634361872,0.00093501,65476.0,65475.0,2.08965773]
[1718634362083,0.00318279,65495.0,65494.0,1.068798]
[1718634362298,0.00318279,65495.0,65494.0,0.549456]
[1718634362517,0.00318279,65495.0,65494.0,0.649456]
[1718634362728,0.00318279,65495.0,65494.0,0.1]
[1718634362937,0.07718279,65495.0,65494.0,0.1]
[1718634363633,0.00318279,65495.0,65494.0,0.558056]
[1718634364053,0.00318279,65495.0,65494.0,0.863427]
[1718634364501,0.00318279,65495.0,65494.0,0.102]
[1718634364502,0.13488279,65495.0,65494.0,0.102]
[1718634364709,0.00318279,65495.0,65494.0,0.460056]
[1718634364913,0.01943275,65495.0,65494.0,0.865427]
[1718634365132,0.00318279,65495.0,65494.0,0.867427]
[1718634365339,0.00318279,65496.0,65495.0,0.763415]
[1718634365540,0.00318279,65496.0,65495.0,0.558049]
[1718634365958,0.00318279,65496.0,65495.0,0.252683]
[1718634366590,0.00318279,65496.0,65495.0,0.558049]
[1718634366813,0.01977664,65496.0,65495.0,0.558049]
[1718634367110,0.00318279,65496.0,65495.0,0.863415]
[1718634367322,0.02318279,65496.0,65495.0,0.1]
[1718634367713,0.02,65490.0,65489.0,0.558091]
[1718634367919,0.02,65492.0,65491.0,0.152692]
[1718634368126,0.02,65492.0,65491.0,0.1]
[1718634368325,0.02,65492.0,65491.0,0.252692]
[1718634368532,0.01690304,65492.0,65491.0,0.558077]
[1718634368752,0.03690304,65492.0,65491.0,0.863462]
[1718634368968,0.02,65492.0,65491.0,0.863462]
[1718634369180,0.02,65494.0,65493.0,0.152688]
[1718634369381,0.02,65494.0,65493.0,0.252688]
[1718634369618,0.03688932,65494.0,65493.0,0.252688]
[1718634369820,0.02,65494.0,65493.0,0.1]
[1718634370040,0.0368758,65494.0,65493.0,0.1]
[1718634370401,0.02,65492.0,65491.0,0.256691]
[1718634370614,0.17587279,65492.0,65491.0,0.104]
[1718634370819,0.2690944,65492.0,65491.0,0.004]
[1718634371052,0.5744744,65492.0,65491.0,0.004]
[1718634371261,0.8798544,65492.0,65491.0,0.004]
[1718634371410,0.5744744,65492.0,65491.0,0.004]
[1718634371612,0.1164044,65492.0,65491.0,0.004]
[1718634371788,0.00318279,65491.0,65490.0,0.1]
[1718634371990,0.00318279,65489.0,65488.0,0.305399]
[1718634372251,0.00318279,65489.0,65488.0,0.863497]
[1718634372388,0.00318279,65489.0,65488.0,0.558098]
[1718634373429,0.00318279,65489.0,65488.0,0.567098]
[1718634373639,0.00318279,65489.0,65488.0,0.872497]
[1718634374465,0.00318279,65489.0,65488.0,1.177896]
[1718634374714,0.00318279,65489.0,65488.0,1.33062488]
[1718634375340,0.00318279,65490.0,65489.0,0.763485]
[1718634375542,0.00318279,65490.0,65489.0,1.01621388]
[1718634376571,0.00318279,65490.0,65489.0,1.02421388]
[1718634377380,0.00318279,65490.0,65489.0,1.32960788]
[1718634378695,0.00318279,65490.0,65489.0,1.33660788]
[1718634380030,0.00318279,65491.0,65490.0,1.068865]
[1718634380252,0.00318279,65491.0,65490.0,1.32159388]
[1718634382225,0.00318279,65491.0,65490.0,1.32659388]
[1718634382631,0.00318279,65491.0,65490.0,1.33259388]
[1718634384503,0.00318279,65494.0,65493.0,0.152688]
[1718634384735,0.00318279,65498.0,65497.0,0.763392]
[1718634384985,0.00318279,65498.0,65497.0,1.068749]
[1718634385185,0.00318279,65498.0,65497.0,1.168749]
[1718634385613,0.009372,65502.0,65499.0,0.152674]
[1718634385614,0.00318279,65500.0,65499.0,0.152674]
[1718634385811,0.00318279,65500.0,65499.0,0.61075088]
[1718634386069,0.00318279,65500.0,65499.0,1.32144688]
[1718634386426,0.009372,65502.0,65501.0,1.068683]
[1718634386651,0.009372,65502.0,65501.0,1.44812767]
[1718634386652,0.01255479,65502.0,65501.0,1.44812767]
[1718634386875,0.01255479,65502.0,65501.0,1.75346181]
[1718634386876,0.02952855,65502.0,65501.0,1.75346181]
[1718634387089,0.02952855,65502.0,65501.0,1.75346292]
[1718634387090,0.01255479,65502.0,65501.0,1.75346292]
[1718634388544,0.009372,65502.0,65501.0,1.75346292]
[1718634388756,0.01255479,65502.0,65501.0,1.50687115]
[1718634388978,0.01255479,65502.0,65501.0,1.44812492]
[1718634389185,0.01255479,65502.0,65501.0,1.50688734]
[1718634389387,0.01255479,65502.0,65501.0,1.51388734]
[1718634390276,0.01255479,65502.0,65501.0,0.59787334]
[1718634390710,0.02965176,65502.0,65501.0,1.15578692]
[1718634390924,0.68805579,65502.0,65501.0,0.13971304]
[1718634391165,0.69805579,65502.0,65501.0,0.13971304]
[1718634391406,0.69805579,65502.0,65501.0,0.013]
[1718634391407,0.7151538,65502.0,65501.0,0.013]
[1718634391642,0.2571528,65502.0,65501.0,0.013]
[1718634392128,0.2571528,65502.0,65501.0,0.471007]
[1718634392382,0.1476528,65502.0,65501.0,1.34814364]
[1718634392624,0.01255479,65502.0,65501.0,1.34814364]
[1718634392862,0.01355479,65502.0,65501.0,1.34814364]
[1718634393099,0.03255479,65502.0,65501.0,1.04280564]
[1718634393341,0.0496528,65502.0,65501.0,1.04280564]
[1718634393594,0.49055579,65502.0,65501.0,0.005]
[1718634393833,0.49055579,65502.0,65496.0,0.01879365]
[1718634393834,0.02,65497.0,65496.0,0.01879365]
[1718634394074,0.02318279,65497.0,65496.0,0.2982557]
[1718634394313,0.00318279,65497.0,65496.0,1.14286705]
[1718634394548,0.0402808,65497.0,65496.0,1.14286705]
[1718634394791,0.02318279,65497.0,65496.0,0.37946205]
[1718634395044,0.02318279,65497.0,65496.0,0.53214305]
[1718634395288,0.0402808,65497.0,65496.0,0.53214305]
[1718634395523,0.0402808,65497.0,65496.0,0.83750505]
[1718634395747,0.02318279,65497.0,65496.0,0.83750505]
[1718634396661,0.02318279,65497.0,65496.0,0.22673317]
[1718634396898,0.28456079,65497.0,65496.0,0.22673317]
[1718634397141,0.13188279,65497.0,65496.0,0.23673317]
[1718634397383,0.14883495,65497.0,65496.0,0.24573317]
[1718634397676,0.14883495,65497.0,65496.0,0.23573317]
[1718634397910,0.14883495,65497.0,65496.0,0.22673662]
[1718634398376,0.14883495,65497.0,65496.0,0.23173662]
[1718634398858,0.12883495,65497.0,65496.0,0.23173662]
[1718634399085,0.12883495,65497.0,65496.0,0.39441762]
[1718634399560,0.12883495,65497.0,65496.0,0.38441762]
[1718634399798,0.12883495,65497.0,65496.0,0.39441762]
[1718634400314,0.12883495,65497.0,65496.0,0.68477962]
[1718634400547,0.12883495,65497.0,65496.0,0.39841762]
[1718634400786,0.02013495,65497.0,65496.0,0.39841762]
[1718634401009,0.02013495,65497.0,65496.0,1.1428705]
[1718634401252,0.00318279,65497.0,65496.0,1.201542]
[1718634401700,0.00318279,65497.0,65496.0,1.210542]
[1718634402168,0.00318279,65497.0,65496.0,1.201542]
[1718634402408,0.00318279,65497.0,65496.0,0.438137]
[1718634402668,0.00318279,65497.0,65496.0,1.4482325]
[1718634402874,0.02011476,65497.0,65496.0,1.1528705]
[1718634403086,0.02318279,65497.0,65496.0,1.1428705]
[1718634403307,0.26686079,65497.0,65496.0,0.12673662]
[1718634403516,0.26686079,65497.0,65482.0,0.12018]
[1718634403517,0.00318279,65491.0,65490.0,0.458084]
[1718634403729,0.00318279,65491.0,65490.0,0.79626063]
[1718634403934,0.02318279,65491.0,65490.0,1.20165063]
[1718634404160,0.00318279,65491.0,65490.0,1.20165063]
[1718634404370,0.00318279,65491.0,65490.0,0.43817712]
[1718634404807,0.02015806,65491.0,65490.0,0.59087212]
[1718634405020,0.00318279,65491.0,65490.0,1.20165212]
[1718634405741,0.02318279,65491.0,65490.0,0.60087212]
[1718634405958,0.02318279,65491.0,65490.0,0.90626212]
[1718634406173,0.00318279,65491.0,65490.0,0.90626212]
[1718634406611,0.00318279,65491.0,65490.0,1.21165212]
[1718634407068,0.00318279,65491.0,65490.0,1.21191236]
[1718634407483,0.02318279,65491.0,65490.0,1.21187569]
[1718634407705,0.02318279,65491.0,65490.0,0.59109569]
[1718634407913,0.02318279,65491.0,65490.0,0.90748569]
[1718634408132,0.03332512,65491.0,65490.0,0.85055117]
[1718634408341,0.02318279,65491.0,65490.0,0.85055117]
[1718634408559,0.02318279,65491.0,65490.0,0.55916117]
[1718634408772,0.02318279,65491.0,65490.0,0.86455117]
[1718634409407,0.45987479,65491.0,65490.0,0.25373729]
[1718634409619,0.54635824,65491.0,65490.0,0.25373729]
[1718634409834,0.85174324,65491.0,65490.0,0.25373729]
[1718634410053,0.39366624,65491.0,65490.0,0.25373729]
[1718634410485,0.29976624,65491.0,65490.0,0.25373729]
[1718634410708,0.29976624,65491.0,65490.0,0.55912729]
[1718634410917,0.31976624,65491.0,65490.0,0.71182229]
[1718634411333,0.31976624,65491.0,65490.0,0.25373729]
[1718634412414,0.31976624,65491.0,65490.0,0.127]
[1718634412627,0.29976624,65491.0,65490.0,0.127]
[1718634412891,0.31976624,65491.0,65490.0,0.127]
[1718634413099,0.29976624,65491.0,65490.0,0.127]
[1718634413309,0.31976624,65491.0,65490.0,0.127]
[1718634413729,0.31976624,65491.0,65490.0,0.279695]
[1718634414378,0.29976624,65491.0,65490.0,0.279695]
[1718634414601,0.31976624,65491.0,65490.0,0.585085]
[1718634415027,0.31976624,65491.0,65490.0,0.127]
[1718634415682,0.31976624,65491.0,65490.0,0.279695]
[1718634415894,0.31976624,65491.0,65490.0,0.585085]
[1718634416318,0.31976624,65491.0,65490.0,0.279695]
[1718634416527,0.31976624,65491.0,65490.0,0.127]
[1718634416704,0.77784324,65491.0,65490.0,0.127]
[1718634416972,0.31976624,65491.0,65490.0,0.027]
[1718634417185,0.31976624,65491.0,65490.0,0.127]
[1718634417395,0.31976624,65491.0,65490.0,0.585085]
[1718634417889,0.31976624,65491.0,65490.0,0.279695]
[1718634418095,0.39366624,65491.0,65490.0,0.127]
[1718634418322,0.39366624,65491.0,65490.0,0.027]
[1718634418743,0.54635824,65491.0,65490.0,0.027]
[1718634419162,0.39366624,65491.0,65490.0,0.027]
[1718634419603,0.13062512,65491.0,65490.0,0.027]
[1718634420256,0.91408712,65491.0,65490.0,0.027]
[1718634420553,0.30331712,65491.0,65490.0,0.13974666]
[1718634420732,0.60870212,65491.0,65490.0,0.23974666]
[1718634420960,0.60870212,65491.0,65490.0,0.24674666]
[1718634420961,0.30331712,65491.0,65490.0,0.24674666]
[1718634421402,0.30331712,65491.0,65490.0,0.23374666]
[1718634421648,0.60870212,65491.0,65490.0,0.107]
[1718634421850,0.60870212,65491.0,65490.0,0.014]
[1718634422290,0.091,65495.0,65490.0,0.014]
[1718634422291,0.35634633,65511.0,65490.0,0.007]
[1718634422494,0.45807,65492.0,65491.0,0.05]
[1718634422698,0.226592,65491.0,65490.0,0.062]
[1718634423143,0.0739,65491.0,65490.0,0.062]
[1718634424195,0.531977,65491.0,65490.0,0.012]
[1718634424437,0.85248644,65491.0,65490.0,0.012]
[1718634425085,0.24171644,65491.0,65490.0,0.012]
[1718634425285,0.45611644,65491.0,65490.0,0.007]
[1718634425494,0.76150144,65491.0,65490.0,0.007]
[1718634425928,0.45611644,65491.0,65490.0,0.007]
[1718634426138,0.76150144,65491.0,65490.0,0.012]
[1718634426548,0.30342444,65491.0,65490.0,0.007]
[1718634427422,0.45705145,65491.0,65490.0,0.007]
[1718634427833,0.30435945,65491.0,65490.0,0.007]
[1718634428319,0.30435945,65491.0,65490.0,0.012]
[1718634428759,0.01605945,65491.0,65490.0,0.41739]
[1718634428965,0.01605945,65491.0,65490.0,1.70144065]
[1718634429170,0.00093501,65491.0,65490.0,1.39605065]
[1718634429592,0.00093501,65491.0,65490.0,1.49605065]
[1718634430019,0.00093501,65491.0,65490.0,0.73117065]
[1718634430227,0.00093501,65491.0,65490.0,0.33874677]
[1718634430430,0.00093501,65491.0,65490.0,0.49144177]
[1718634430638,0.00093501,65491.0,65490.0,1.10222177]
[1718634431117,0.00093501,65491.0,65490.0,1.40761177]
[1718634431549,0.00093501,65491.0,65490.0,1.40760242]
[1718634432838,0.00093501,65491.0,65490.0,1.50760242]
[1718634433064,0.00093501,65491.0,65490.0,1.52758621]
[1718634433733,0.00093501,65491.0,65490.0,1.40760242]
[1718634433946,0.00093501,65491.0,65490.0,1.10221242]
[1718634434161,0.00093501,65491.0,65490.0,0.79682242]
[1718634434593,0.00093501,65491.0,65490.0,1.10221242]
[1718634435037,0.00093501,65491.0,65490.0,0.79682242]
[1718634435762,0.00093501,65491.0,65490.0,0.28873742]
[1718634436197,0.01617725,65491.0,65490.0,0.44144619]
[1718634436422,0.00093501,65491.0,65490.0,0.74683619]
[1718634437288,0.00093501,65491.0,65490.0,0.79683619]
[1718634437509,0.00093501,65491.0,65490.0,0.49144619]
[1718634437734,0.01617725,65491.0,65490.0,0.49144619]
[1718634437952,0.00093501,65491.0,65490.0,0.28875119]
[1718634438187,0.01617725,65491.0,65490.0,0.33875119]
[1718634438417,0.01617725,65491.0,65490.0,0.28875119]
[1718634438418,0.00093501,65491.0,65490.0,0.28875119]
[1718634438653,0.09007725,65491.0,65490.0,0.79683619]
[1718634438871,0.07483501,65491.0,65490.0,0.79683619]
[1718634439098,0.09007725,65491.0,65490.0,0.74683619]
[1718634439317,0.09007725,65491.0,65490.0,0.44144619]
[1718634439318,0.07483501,65491.0,65490.0,0.44144619]
[1718634439540,0.09007725,65491.0,65490.0,0.44144619]
[1718634439962,0.09007725,65491.0,65490.0,0.74683619]
[1718634440175,0.09007725,65491.0,65490.0,1.05222619]
[1718634440390,0.00093501,65491.0,65490.0,1.35761619]
[1718634441897,0.00093501,65491.0,65490.0,1.52759998]
[1718634442114,0.00093501,65491.0,65490.0,2.38184306]
[1718634442550,0.00093501,65491.0,65490.0,1.95646927]
[1718634442760,0.00093501,65491.0,65490.0,1.65234507]
[1718634443830,0.00093501,65491.0,65490.0,1.6523319]
[1718634444935,0.00093501,65491.0,65490.0,2.12690569]
[1718634445145,0.00093501,65491.0,65490.0,2.42775449]
[1718634447001,0.00093501,65491.0,65490.0,2.3077707]
[1718634447657,0.00093501,65491.0,65490.0,2.42775449]
[1718634448733,0.00093501,65491.0,65490.0,2.12690569]
[1718634448958,0.00093501,65491.0,65490.0,1.82151569]
[1718634450242,0.00093501,65491.0,65490.0,1.7015319]
[1718634451426,0.00093501,65491.0,65490.0,1.6474319]
[1718634451864,0.00093501,65491.0,65490.0,0.28873802]
[1718634452076,0.27853501,65491.0,65490.0,0.18873802]
[1718634452515,0.27853501,65491.0,65490.0,0.062]
[1718634452953,0.44647422,65491.0,65490.0,0.012]
[1718634453179,0.29378222,65491.0,65490.0,0.012]
[1718634453832,0.29378222,65491.0,65490.0,0.005]
[1718634454051,0.75185922,65491.0,65490.0,0.011]
[1718634454492,0.75185922,65491.0,65490.0,0.005]
[1718634454493,1.36262922,65491.0,65490.0,0.005]
[1718634454732,0.1151,65486.0,65482.0,0.05]
[1718634454931,0.0739,65483.0,65482.0,0.05]
[1718634455153,0.0151824,65485.0,65482.0,0.202712]
[1718634455365,0.08896976,65483.0,65482.0,0.05]
[1718634455790,0.08878604,65483.0,65482.0,0.05]
[1718634456021,0.08878604,65483.0,65482.0,0.059]
[1718634456480,0.08878604,65483.0,65482.0,0.05]
[1718634457534,0.08878604,65483.0,65482.0,0.06]
[1718634458178,0.08878604,65483.0,65482.0,0.068]
[1718634459446,0.08878604,65483.0,65482.0,0.06885]
[1718634460251,0.08896976,65483.0,65482.0,0.06885]
[1718634464518,0.08896976,65483.0,65482.0,0.01885]
[1718634465209,0.24168076,65483.0,65482.0,0.01885]
[1718634465853,1.09732476,65483.0,65482.0,0.01885]
[1718634466785,1.09732476,65483.0,65482.0,0.01085]
[1718634467009,1.09832476,65483.0,65482.0,0.01085]
[1718634468067,1.09832476,65483.0,65482.0,0.00085]
[1718634468490,1.09832476,65483.0,65482.0,0.00185]
[1718634468705,1.09732476,65483.0,65482.0,0.00085]
[1718634469094,1.10232476,65483.0,65482.0,0.00185]
[1718634470538,1.40774676,65483.0,65482.0,0.00185]
[1718634472436,1.10232476,65483.0,65482.0,0.00185]
[1718634479155,1.40774676,65483.0,65482.0,0.00185]
[1718634479369,1.71316876,65483.0,65482.0,0.00185]
[1718634479577,1.5695262,65483.0,65482.0,0.00185]
[1718634480028,2.02767708,65483.0,65482.0,0.00185]
[1718634480235,2.09616367,65483.0,65482.0,0.00185]
[1718634480451,2.09316643,65483.0,65482.0,0.00185]
[1718634480655,2.09258513,65483.0,65482.0,0.00185]
[1718634480871,2.09558513,65483.0,65482.0,0.00285]
[1718634481069,2.02509578,65483.0,65482.0,0.00185]
[1718634481280,2.04809578,65483.0,65482.0,0.00185]
[1718634481540,2.47802886,65483.0,65482.0,0.00185]
[1718634481695,2.04809578,65483.0,65482.0,0.00185]
[1718634482113,2.11712156,65483.0,65482.0,0.00185]
[1718634482599,2.11412156,65483.0,65482.0,0.00085]
[1718634482818,2.04566426,65483.0,65482.0,0.00085]
[1718634483036,2.05866426,65483.0,65482.0,0.00185]
[1718634483258,2.10429271,65483.0,65482.0,0.00185]
[1718634483465,2.11329271,65483.0,65482.0,0.00285]
[1718634483903,2.09129271,65483.0,65482.0,0.00085]
[1718634484384,2.11929271,65483.0,65482.0,0.00285]
[1718634484817,2.10529271,65483.0,65482.0,0.00185]
[1718634485227,2.07366426,65483.0,65482.0,0.00285]
[1718634485430,2.06357255,65483.0,65482.0,0.00285]
[1718634485662,2.109201,65483.0,65482.0,0.00285]
[1718634486089,2.04957255,65483.0,65482.0,0.00185]
[1718634486509,2.05957255,65483.0,65482.0,0.00285]
[1718634487147,1.88796721,65483.0,65482.0,0.00285]
[1718634487380,2.05968815,65483.0,65482.0,0.00285]
[1718634488510,2.00571858,65483.0,65482.0,0.00285]
[1718634490460,1.93181858,65483.0,65482.0,0.00285]
[1718634490683,2.06142396,65483.0,65482.0,0.00285]
[1718634493752,1.75600196,65483.0,65482.0,0.00285]
[1718634494610,1.75693697,65483.0,65482.0,0.00285]
[1718634495534,2.06235897,65483.0,65482.0,0.00285]
[1718634498947,2.22315897,65483.0,65482.0,0.00285]
[1718634499158,1.610525,65477.0,65476.0,0.00085]
[1718634499344,2.0136802,65477.0,65476.0,0.00085]
[1718634499479,2.01480288,65477.0,65476.0,0.00085]
[1718634499687,2.02945084,65477.0,65476.0,0.00085]
[1718634500305,2.67355705,65477.0,65476.0,0.00085]
[1718634500718,2.37710705,65477.0,65476.0,0.00185]
[1718634501129,2.37610705,65477.0,65476.0,0.00185]
[1718634501325,2.37644312,65477.0,65476.0,0.00185]
[1718634501530,2.4688205,65477.0,65476.0,0.00185]
[1718634502099,2.4768205,65477.0,65476.0,0.00285]
[1718634502526,2.4688205,65477.0,65476.0,0.00185]
[1718634503175,2.4598205,65477.0,65476.0,0.00085]
[1718634503418,0.68058691,65477.0,65476.0,0.00085]
[1718634503666,1.04572025,65477.0,65476.0,0.00085]
[1718634503922,1.30548691,65477.0,65476.0,0.00085]
[1718634504122,1.31948691,65477.0,65476.0,0.00185]
[1718634504645,0.17874717,65477.0,65476.0,0.00185]
[1718634504859,0.11654796,65477.0,65476.0,0.00185]
[1718634505511,0.04264796,65477.0,65476.0,1.000287]
[1718634505973,0.04264796,65477.0,65476.0,0.999287]
[1718634505974,0.014,65477.0,65476.0,0.999287]
[1718634506190,0.014,65477.0,65476.0,0.693832]
[1718634506399,0.014,65477.0,65476.0,0.999287]
[1718634506612,0.0739,65478.0,65477.0,0.152725]
[1718634506820,0.00093501,65483.0,65477.0,0.1713]
[1718634507034,0.07483501,65483.0,65482.0,0.11]
[1718634507274,0.07483501,65483.0,65482.0,0.262713]
[1718634507489,0.07483501,65483.0,65482.0,0.11]
[1718634507917,0.07483501,65483.0,65482.0,0.262713]
[1718634508383,0.07683501,65483.0,65482.0,0.262713]
[1718634508610,0.00293501,65483.0,65482.0,0.56814]
[1718634508837,0.00293501,65483.0,65482.0,1.044867]
[1718634509056,0.00293501,65483.0,65482.0,1.350294]
[1718634509057,0.00693501,65483.0,65482.0,1.350294]
[1718634509701,0.00693501,65483.0,65482.0,1.35022667]
[1718634509985,0.00493501,65483.0,65482.0,1.04479967]
[1718634510406,0.00593501,65483.0,65482.0,1.04979967]
[1718634510843,0.00193501,65483.0,65482.0,1.04979967]
[1718634511083,0.00193501,65483.0,65482.0,1.05279967]
[1718634511749,0.00193501,65483.0,65482.0,1.75483934]
[1718634512243,0.00193501,65483.0,65482.0,1.68093934]
[1718634513344,0.00193501,65483.0,65482.0,2.06026634]
[1718634513808,0.00193501,65483.0,65482.0,2.18701881]
[1718634515377,0.00193501,65483.0,65482.0,1.68093934]
[1718634516329,0.00193501,65483.0,65482.0,1.98636634]
[1718634516575,0.00193501,65483.0,65482.0,1.68093934]
[1718634516791,0.00193501,65483.0,65482.0,2.08636634]
[1718634517012,0.00193501,65483.0,65482.0,2.21311383]
[1718634518899,0.00193501,65483.0,65482.0,2.08636634]
[1718634519107,0.00193501,65483.0,65482.0,2.21310976]
[1718634519313,0.00193501,65483.0,65482.0,2.21310993]
[1718634520135,0.00193501,65483.0,65482.0,2.08636634]
[1718634520572,0.00193501,65483.0,65482.0,2.21310849]
[1718634520999,0.00193501,65483.0,65482.0,2.08636634]
[1718634524594,0.00193501,65483.0,65482.0,0.92880155]
[1718634524804,0.00193501,65483.0,65482.0,0.77607267]
[1718634525013,0.00193501,65483.0,65482.0,0.47064567]
[1718634525648,0.00193501,65483.0,65482.0,0.31793267]
[1718634526754,0.16973165,65483.0,65482.0,0.20885]
[1718634526967,0.16973165,65483.0,65482.0,0.10885]
[1718634527186,0.01702065,65483.0,65482.0,0.10885]
[1718634529439,0.47515365,65483.0,65482.0,0.10885]
[1718634529653,0.01702065,65483.0,65482.0,0.10885]
[1718634530560,0.01702065,65483.0,65482.0,0.10585]
[1718634530771,0.01602065,65483.0,65482.0,0.10085]
[1718634531217,0.01602065,65483.0,65482.0,0.10485]
[1718634532159,0.01602065,65483.0,65482.0,0.56299]
[1718634532365,0.00093501,65483.0,65482.0,0.871417]
[1718634532818,0.00093501,65483.0,65482.0,1.02114588]
[1718634533065,0.00093501,65483.0,65482.0,1.67445667]
[1718634533283,0.00093501,65483.0,65482.0,1.67745667]
[1718634533939,0.00093501,65483.0,65482.0,1.68245667]
[1718634534146,0.00093501,65483.0,65482.0,1.67345667]
[1718634534363,0.00093501,65483.0,65482.0,1.8002106]
[1718634534583,0.00093501,65483.0,65482.0,1.8052106]
[1718634534807,0.00093501,65483.0,65482.0,1.67845667]
[1718634535079,0.00093501,65483.0,65482.0,1.8052104]
[1718634535312,0.00093501,65483.0,65482.0,2.16927156]
[1718634535527,0.00093501,65483.0,65482.0,2.26927156]
[1718634537526,0.00093501,65483.0,65482.0,2.47498253]
[1718634537732,0.00093501,65483.0,65482.0,2.26927156]
[1718634538412,0.00093501,65483.0,65482.0,2.47317795]
[1718634539546,0.00093501,65483.0,65482.0,2.16775095]
[1718634539757,0.00093501,65483.0,65482.0,1.96384456]
[1718634540170,0.00093501,65483.0,65482.0,2.17626303]
[1718634541449,0.00093501,65483.0,65482.0,2.17625668]
[1718634542103,0.00093501,65483.0,65482.0,2.48168368]
[1718634543199,0.00093501,65483.0,65482.0,2.17625668]
[1718634543625,0.00093501,65483.0,65482.0,2.25015668]
[1718634544260,0.00093501,65483.0,65482.0,2.55558368]
[1718634544478,0.00093501,65483.0,65482.0,2.56558368]
[1718634544917,0.00093501,65483.0,65482.0,2.87101068]
[1718634545131,0.00093501,65483.0,65482.0,3.03033415]
[1718634545351,0.00093501,65483.0,65482.0,2.72490715]
[1718634545577,0.00093501,65483.0,65482.0,3.03033415]
[1718634545811,0.00093501,65483.0,65482.0,2.72490715]
[1718634546536,0.00093501,65483.0,65482.0,2.72190715]
[1718634547003,0.00093501,65483.0,65482.0,2.65820081]
[1718634547254,0.00093501,65483.0,65482.0,2.71694966]
[1718634547508,0.00193501,65483.0,65482.0,2.84074966]
[1718634548238,0.00293501,65483.0,65482.0,2.85174966]
[1718634549316,0.00293501,65483.0,65482.0,2.84174966]
[1718634549751,0.00293501,65483.0,65482.0,2.85174966]
[1718634549971,0.00293501,65483.0,65482.0,2.66523366]
[1718634550209,0.00293501,65483.0,65482.0,2.49591019]
[1718634551371,0.00293501,65483.0,65482.0,2.36916483]
[1718634551598,0.00293501,65483.0,65482.0,2.49590319]
[1718634552653,0.00293501,65483.0,65482.0,2.19047619]
[1718634552948,0.00293501,65483.0,65482.0,2.19056294]
[1718634553195,0.00293501,65483.0,65482.0,2.06906418]
[1718634554394,0.00293501,65483.0,65482.0,2.06905925]
[1718634555116,0.00293501,65483.0,65482.0,1.85671094]
[1718634555792,0.00293501,65483.0,65482.0,1.75031094]
[1718634556490,0.00293501,65483.0,65482.0,1.75030632]
[1718634557690,0.00293501,65483.0,65482.0,1.63032253]
[1718634558403,0.00293501,65483.0,65482.0,1.01946853]
[1718634558650,0.00293501,65483.0,65482.0,0.96065126]
[1718634558868,0.00293501,65483.0,65482.0,1.26607826]
[1718634559539,0.00293501,65483.0,65482.0,1.26608711]